fUSD/lending_fUSD_20240630
["ID","MTS","AMOUNT","RATE_DAILY","PERIOD"]
[330758624,1719759042794,-154.6907712,0.00013913,2]
[330758625,1719759042804,-500.0,0.00013915,3]
[330758626,1719759042813,-500.0,0.00013915,3]
[330758627,1719759042822,-500.0,0.00013915,3]
[330758629,1719759042833,-500.0,0.00013915,3]
[330758631,1719759042842,-500.0,0.00013915,3]
[330758634,1719759042851,-500.0,0.00013915,3]
[330758637,1719759042860,-500.0,0.00013915,3]
[330758640,1719759042869,-699.49,0.00013915,3]
[330758643,1719759042878,-500.0,0.00013915,3]
[330758646,1719759042888,-500.0,0.00013915,3]
[330758649,1719759042897,-500.0,0.00013915,3]
[330758652,1719759042906,-500.0,0.00013915,3]
[330758655,1719759042916,-500.0,0.00013915,3]
[330758658,1719759042925,-500.0,0.00013915,3]
[330758661,1719759042934,-500.0,0.00013915,3]
[330758664,1719759042943,-500.0,0.00013915,3]
[330758667,1719759042952,-500.0,0.00013915,3]
[330758670,1719759042961,-500.0,0.00013915,3]
[330758673,1719759042971,-500.0,0.00013915,3]
[330758676,1719759042981,-500.0,0.00013915,3]
[330758679,1719759042990,-500.0,0.00013915,3]
[330758684,1719759043005,-500.0,0.00013915,3]
[330758687,1719759043015,-500.0,0.00013915,3]
[330758691,1719759043024,-150.0,0.00013915,3]
[330758695,1719759043033,-500.0,0.00013915,3]
[330758699,1719759043044,-196.43,0.00013915,3]
[330758703,1719759043053,-500.0,0.00013915,3]
[330758707,1719759043062,-500.0,0.00013915,3]
[330758711,1719759043071,-500.0,0.00013915,3]
[330758716,1719759043082,-500.0,0.00013915,3]
[330758719,1719759043092,-500.0,0.00013915,3]
[330758723,1719759043102,-500.0,0.00013915,3]
[330758727,1719759043111,-459.44,0.00013915,3]
[330758731,1719759043120,-500.0,0.00013915,3]
[330758735,1719759043129,-500.0,0.00013915,3]
[330758739,1719759043139,-500.0,0.00013915,3]
[330758743,1719759043149,-500.0,0.00013915,3]
[330758747,1719759043158,-500.0,0.00013915,3]
[330758751,1719759043168,-500.0,0.00013915,3]
[330758755,1719759043179,-500.0,0.00013915,3]
[330758759,1719759043188,-791.92,0.00013915,3]
[330758763,1719759043197,-500.0,0.00013915,3]
[330758767,1719759043206,-500.0,0.00013915,3]
[330758771,1719759043215,-500.0,0.00013915,3]
[330758775,1719759043224,-500.0,0.00013915,3]
[330758779,1719759043233,-500.0,0.00013915,3]
[330758783,1719759043243,-500.0,0.00013915,3]
[330758786,1719759043254,-579.92,0.00013915,3]
[330758791,1719759043263,-500.0,0.00013915,3]
[330758795,1719759043272,-500.0,0.00013915,3]
[330758799,1719759043282,-500.0,0.00013915,3]
[330758802,1719759043292,-500.0,0.00013915,3]
[330758807,1719759043302,-500.0,0.00013915,3]
[330758811,1719759043312,-500.0,0.00013915,3]
[330758814,1719759043321,-1002.91,0.00013915,3]
[330758818,1719759043330,-500.0,0.00013915,3]
[330758822,1719759043339,-500.0,0.00013915,3]
[330758826,1719759043349,-500.0,0.00013915,3]
[330758829,1719759043359,-500.0,0.00013915,3]
[330758832,1719759043368,-500.0,0.00013915,3]
[330758836,1719759043377,-500.0,0.00013916,3]
[330758839,1719759043386,-500.0,0.00013916,3]
[330758842,1719759043395,-500.0,0.00013916,3]
[330758844,1719759043404,-665.72,0.00013916,3]
[330758847,1719759043414,-500.0,0.00013917,3]
[330758850,1719759043423,-500.0,0.00013917,3]
[330758853,1719759043433,-500.0,0.00013917,3]
[330758856,1719759043442,-500.0,0.00013917,3]
[330758859,1719759043451,-500.0,0.00013917,3]
[330758862,1719759043461,-500.0,0.00013917,3]
[330758865,1719759043470,-500.0,0.00013917,3]
[330758867,1719759043479,-500.0,0.00013917,3]
[330758870,1719759043488,-500.0,0.00013917,3]
[330758873,1719759043498,-500.0,0.00013917,3]
[330758876,1719759043507,-500.0,0.00013917,3]
[330758879,1719759043517,-500.0,0.00013917,3]
[330758882,1719759043527,-500.0,0.00013917,3]
[330758884,1719759043536,-500.0,0.00013917,3]
[330758887,1719759043546,-500.0,0.00013917,3]
[330758890,1719759043556,-500.0,0.00013917,3]
[330758893,1719759043566,-500.0,0.00013917,3]
[330758896,1719759043575,-500.0,0.00013917,3]
[330758899,1719759043585,-2165.81,0.00013917,3]
[330758901,1719759043594,-500.0,0.00013917,3]
[330758903,1719759043603,-500.0,0.00013917,3]
[330758905,1719759043613,-12970.53,0.00013917,3]
[330758908,1719759043622,-500.0,0.00013917,3]
[330758911,1719759043632,-500.0,0.00013917,3]
[330758914,1719759043641,-500.0,0.00013917,3]
[330758917,1719759043650,-500.0,0.00013917,3]
[330758920,1719759043660,-500.0,0.00013917,3]
[330758923,1719759043670,-500.0,0.00013917,3]
[330758926,1719759043679,-1300.21,0.00013917,3]
[330758929,1719759043689,-656.32,0.00013917,3]
[330758931,1719759043698,-1073.9,0.00013917,3]
[330758934,1719759043707,-500.0,0.00013917,3]
[330758937,1719759043716,-500.0,0.00013917,3]
[330758940,1719759043725,-520.83,0.00013917,3]
[330758943,1719759043735,-500.0,0.00013917,3]
[330758946,1719759043744,-500.0,0.00013917,3]
[330758950,1719759043754,-500.0,0.00013917,3]
[330758952,1719759043763,-500.0,0.00013917,3]
[330758955,1719759043773,-500.0,0.00013917,3]
[330758958,1719759043782,-600.44,0.00013917,3]
[330758961,1719759043791,-500.0,0.00013917,3]
[330758964,1719759043801,-500.0,0.00013917,3]
[330758967,1719759043810,-974.46,0.00013917,3]
[330758970,1719759043820,-500.0,0.00013917,3]
[330758973,1719759043830,-500.0,0.00013917,3]
[330758976,1719759043839,-154.6907712,0.00013919,2]
[330758979,1719759043850,-500.0,0.00013925,3]
[330758982,1719759043860,-500.0,0.00013925,3]
[330758985,1719759043869,-500.0,0.00013925,3]
[330758988,1719759043878,-513.85,0.00013925,3]
[330758990,1719759043887,-2491.27,0.00013925,3]
[330758993,1719759043897,-500.0,0.00013925,3]
[330758996,1719759043906,-500.0,0.00013925,3]
[330758999,1719759043917,-500.0,0.00013925,3]
[330759002,1719759043926,-776.8,0.00013925,3]
[330759005,1719759043935,-500.0,0.00013925,3]
[330759008,1719759043946,-500.0,0.00013925,3]
[330759011,1719759043956,-223.31,0.00013925,3]
[330759014,1719759043965,-500.0,0.00013925,3]
[330759017,1719759043975,-492.42,0.00013925,3]
[330759020,1719759043985,-500.0,0.00013925,3]
[330759023,1719759043994,-500.0,0.00013925,3]
[330759026,1719759044004,-335.94,0.00013925,3]
[330759029,1719759044017,-500.0,0.00013925,3]
[330759031,1719759044027,-500.0,0.00013925,3]
[330759035,1719759044036,-500.0,0.00013925,3]
[330759037,1719759044046,-500.0,0.00013925,3]
[330759040,1719759044058,-500.0,0.00013925,3]
[330759042,1719759044067,-500.0,0.00013925,3]
[330759045,1719759044076,-500.0,0.00013925,3]
[330759048,1719759044087,-1029.4,0.00013925,3]
[330759051,1719759044096,-500.0,0.00013925,3]
[330759054,1719759044106,-500.0,0.00013925,3]
[330759057,1719759044115,-500.0,0.00013925,3]
[330759060,1719759044125,-500.0,0.00013925,3]
[330759065,1719759044136,-500.0,0.00013925,3]
[330759068,1719759044145,-500.0,0.00013925,3]
[330759071,1719759044154,-500.0,0.00013925,3]
[330759072,1719759044163,-500.0,0.00013925,3]
[330759076,1719759044174,-500.0,0.00013925,3]
[330759078,1719759044183,-500.0,0.00013925,3]
[330759082,1719759044193,-303.42890872,0.00013925,3]
[330759084,1719759044202,-500.0,0.00013925,3]
[330759088,1719759044212,-500.0,0.00013925,3]
[330759091,1719759044222,-500.0,0.00013925,3]
[330759094,1719759044231,-500.0,0.00013925,3]
[330759097,1719759044241,-500.0,0.00013925,3]
[330759101,1719759044253,-500.0,0.00013925,3]
[330759104,1719759044263,-500.0,0.00013925,3]
[330759107,1719759044272,-500.0,0.00013925,3]
[330759110,1719759044281,-500.0,0.00013925,3]
[330759113,1719759044291,-500.0,0.00013925,3]
[330759116,1719759044300,-500.0,0.00013925,3]
[330759118,1719759044310,-7363.9667288,0.00013926,2]
[330759121,1719759044319,-593.86,0.00013926,3]
[330759124,1719759044328,-500.0,0.00013926,3]
[330759127,1719759044337,-596.84,0.00013926,3]
[330759130,1719759044346,-500.0,0.00013926,3]
[330759133,1719759044355,-500.0,0.00013926,3]
[330759136,1719759044365,-500.0,0.00013926,3]
[330759139,1719759044374,-500.0,0.00013926,3]
[330759141,1719759044383,-289.59,0.00013926,3]
[330759144,1719759044392,-226.71,0.00013926,3]
[330759147,1719759044401,-433.28037,0.00013926,3]
[330759152,1719759044421,-66.71963,0.00013926,3]
[330759155,1719759044431,-500.0,0.00013926,3]
[330759158,1719759044442,-500.0,0.00013926,3]
[330759161,1719759044451,-500.0,0.00013926,3]
[330759163,1719759044461,-500.0,0.00013926,3]
[330759165,1719759044470,-500.0,0.00013926,3]
[330759167,1719759044479,-500.0,0.00013926,3]
[330759169,1719759044489,-500.0,0.00013926,3]
[330759172,1719759044498,-500.0,0.00013926,3]
[330759175,1719759044508,-500.0,0.00013926,3]
[330759177,1719759044517,-500.0,0.00013926,3]
[330759179,1719759044527,-158.55,0.00013926,3]
[330759181,1719759044536,-500.0,0.00013926,3]
[330759183,1719759044546,-500.0,0.00013926,3]
[330759185,1719759044556,-500.0,0.00013926,3]
[330759187,1719759044565,-500.0,0.00013926,3]
[330759189,1719759044574,-500.0,0.00013926,3]
[330759191,1719759044584,-500.0,0.00013926,3]
[330759193,1719759044593,-591.39,0.00013926,3]
[330759196,1719759044602,-500.0,0.00013926,3]
[330759199,1719759044612,-1616.54,0.00013926,3]
[330759202,1719759044621,-500.0,0.00013926,3]
[330759205,1719759044631,-500.0,0.00013926,3]
[330759208,1719759044640,-405.93,0.00013926,3]
[330759211,1719759044648,-500.0,0.00013926,3]
[330759214,1719759044658,-500.0,0.00013926,3]
[330759217,1719759044670,-500.0,0.00013926,3]
[330759220,1719759044679,-500.0,0.00013926,3]
[330759223,1719759044689,-500.0,0.00013926,3]
[330759226,1719759044699,-500.0,0.00013926,3]
[330759229,1719759044708,-500.0,0.00013926,3]
[330759232,1719759044717,-609.02505841,0.00013926,3]
[330759235,1719759044727,-500.0,0.00013926,3]
[330759238,1719759044736,-500.0,0.00013926,3]
[330759241,1719759044745,-314.97,0.00013926,3]
[330759244,1719759044754,-572.91,0.00013926,3]
[330759247,1719759044763,-377.75,0.00013926,3]
[330759250,1719759044772,-500.0,0.00013926,3]
[330759253,1719759044781,-601.96,0.00013926,3]
[330759256,1719759044791,-500.0,0.00013926,3]
[330759260,1719759044800,-374.6,0.00013926,3]
[330759263,1719759044810,-500.0,0.00013926,3]
[330759266,1719759044819,-500.0,0.00013926,3]
[330759269,1719759044829,-500.0,0.00013926,3]
[330759272,1719759044839,-603.84,0.00013926,3]
[330759275,1719759044848,-500.0,0.00013926,3]
[330759278,1719759044858,-500.0,0.00013926,3]
[330759281,1719759044867,-655.58,0.00013926,3]
[330759284,1719759044876,-500.0,0.00013926,3]
[330759287,1719759044885,-500.0,0.00013926,3]
[330759290,1719759044895,-500.0,0.00013926,3]
[330759293,1719759044904,-547.68,0.00013926,3]
[330759295,1719759044914,-500.0,0.00013926,3]
[330759298,1719759044923,-446.96572712,0.00013926,3]
[330759301,1719759044932,-708.73,0.00013926,3]
[330759304,1719759044942,-500.0,0.00013926,3]
[330759307,1719759044951,-500.0,0.00013926,3]
[330759310,1719759044960,-500.0,0.00013926,3]
[330759313,1719759044969,-500.0,0.00013926,3]
[330759316,1719759044979,-500.0,0.00013926,3]
[330759318,1719759044988,-500.0,0.00013926,3]
[330759321,1719759044997,-500.0,0.00013926,3]
[330759324,1719759045011,-500.0,0.00013926,3]
[330759327,1719759045022,-3000.0,0.00013926,2]
[330759330,1719759045031,-306.86,0.00013926,3]
[330759333,1719759045041,-500.0,0.00013926,3]
[330759336,1719759045052,-500.0,0.00013926,3]
[330759340,1719759045063,-500.0,0.00013926,3]
[330759344,1719759045073,-500.0,0.00013926,3]
[330759347,1719759045086,-500.0,0.00013926,3]
[330759350,1719759045095,-500.0,0.00013926,3]
[330759353,1719759045104,-500.0,0.00013926,3]
[330759356,1719759045114,-500.0,0.00013926,3]
[330759359,1719759045123,-500.0,0.00013926,3]
[330759362,1719759045132,-500.0,0.00013926,3]
[330759365,1719759045142,-272.55,0.00013926,3]
[330759368,1719759045151,-500.0,0.00013926,3]
[330759370,1719759045160,-500.0,0.00013926,3]
[330759372,1719759045170,-500.0,0.00013926,3]
[330759374,1719759045180,-500.0,0.00013926,3]
[330759375,1719759045190,-500.0,0.00013926,3]
[330759376,1719759045200,-500.0,0.00013926,3]
[330759377,1719759045209,-1361.81,0.00013926,3]
[330759378,1719759045220,-500.0,0.00013926,3]
[330759379,1719759045230,-500.0,0.00013926,3]
[330759380,1719759045241,-609.37,0.00013926,3]
[330759381,1719759045253,-164.41,0.00013926,3]
[330759382,1719759045263,-500.0,0.00013926,3]
[330759383,1719759045272,-500.0,0.00013926,3]
[330759384,1719759045281,-500.0,0.00013926,3]
[330759385,1719759045291,-500.0,0.00013926,3]
[330759386,1719759045300,-500.0,0.00013926,3]
[330759387,1719759045310,-500.0,0.00013926,3]
[330759388,1719759045319,-500.0,0.00013926,3]
[330759389,1719759045328,-358.93,0.00013926,3]
[330759390,1719759045338,-465.88,0.00013926,3]
[330759391,1719759045347,-154.6907712,0.00013926,2]
[330759392,1719759045356,-450.28,0.00013926,3]
[330759393,1719759045365,-500.0,0.00013926,3]
[330759394,1719759045375,-500.0,0.00013926,3]
[330759395,1719759045383,-500.0,0.00013926,3]
[330759396,1719759045394,-203.94857317,0.00013989,2]
[330759397,1719759045403,-155.0,0.00013989,2]
[330759398,1719759045413,-156.80267621,0.00013989,2]
[330759399,1719759045423,-380.19442756,0.00013998,2]
[330759400,1719759045432,-251328.07315317,0.00013999,2]
[330759401,1719759045445,-8889.91640812,0.00013999,2]
[330759402,1719759045456,-26827.7554927,0.00013999,2]
[330759403,1719759045468,-2612.27654001,0.00013999,2]
[330759404,1719759045479,-11520.5981007,0.00013999,2]
[330759405,1719759045648,151.0,0.00020469,120]
[330759406,1719759045700,-4274.38108645,0.0001379,2]
[330759407,1719759045711,-365.10484834,0.00013889,2]
[330759408,1719759045720,-348.2114685,0.00013917,3]
[330759409,1719759045732,-151.7885315,0.00013917,3]
[330759410,1719759045742,-7883.76618923,0.00013999,2]
[330759411,1719759045753,-444.24779552,0.00013999,2]
[330759412,1719759045764,-7290.45079688,0.00013999,2]
[330759413,1719759045776,-7068.18416655,0.00013999,2]
[330759414,1719759045801,-275933.40112682,0.00013999,2]
[330759415,1719759045811,-461.65351825,0.00014,2]
[330759416,1719759045822,-1000.0,0.00014,2]
[330759417,1719759045831,-26886.46870901,0.00014,2]
[330759418,1719759045843,-2096.6592812,0.00014,2]
[330759420,1719759045855,-612.612,0.00014,2]
[330759422,1719759045866,-7966.45742432,0.00014,2]
[330759425,1719759045878,-32842.16878972,0.00014,2]
[330759427,1719759045889,-54377.09654384,0.00014,2]
[330759429,1719759045900,-838.98778707,0.00014,2]
[330759431,1719759045911,-867493.11360774,0.00014,2]
[330759453,1719759046103,-6644.55524363,0.00014,2]
[330759458,1719759046133,-2123.95717,0.00014,2]
[330759460,1719759046145,-884.18795845,0.00014,2]
[330759462,1719759046157,-84580.67404986,0.00014,2]
[330759463,1719759046169,-500.0,0.00014025,3]
[330759464,1719759046179,-500.0,0.00014025,3]
[330759465,1719759046188,-500.0,0.00014025,3]
[330759466,1719759046198,-500.0,0.00014025,3]
[330759467,1719759046207,-500.0,0.00014025,3]
[330759468,1719759046218,-500.0,0.00014025,3]
[330759469,1719759046228,-699.49,0.00014025,3]
[330759470,1719759046238,-500.0,0.00014025,3]
[330759471,1719759046249,-500.0,0.00014025,3]
[330759472,1719759046259,-500.0,0.00014025,3]
[330759473,1719759046269,-500.0,0.00014025,3]
[330759474,1719759046279,-500.0,0.00014025,3]
[330759475,1719759046288,-500.0,0.00014025,3]
[330759476,1719759046298,-500.0,0.00014025,3]
[330759477,1719759046307,-500.0,0.00014025,3]
[330759478,1719759046317,-542.42,0.00014025,3]
[330759479,1719759046327,-500.0,0.00014025,3]
[330759480,1719759046337,-500.0,0.00014025,3]
[330759481,1719759046346,-500.0,0.00014025,3]
[330759482,1719759046356,-500.0,0.00014025,3]
[330759483,1719759046365,-500.0,0.00014025,3]
[330759484,1719759046375,-500.0,0.00014025,3]
[330759485,1719759046385,-150.0,0.00014025,3]
[330759486,1719759046395,-500.0,0.00014025,3]
[330759487,1719759046404,-500.0,0.00014025,3]
[330759488,1719759046414,-500.0,0.00014025,3]
[330759489,1719759046425,-500.0,0.00014025,3]
[330759490,1719759046435,-344.75,0.00014025,3]
[330759491,1719759046444,-500.0,0.00014025,3]
[330759492,1719759046453,-500.0,0.00014025,3]
[330759493,1719759046463,-500.0,0.00014025,3]
[330759494,1719759046473,-500.0,0.00014025,3]
[330759495,1719759046483,-500.0,0.00014025,3]
[330759496,1719759046492,-500.0,0.00014025,3]
[330759497,1719759046502,-500.0,0.00014025,3]
[330759498,1719759046511,-500.0,0.00014025,3]
[330759499,1719759046521,-500.0,0.00014025,3]
[330759500,1719759046531,-791.92,0.00014025,3]
[330759501,1719759046540,-500.0,0.00014025,3]
[330759502,1719759046550,-500.0,0.00014025,3]
[330759503,1719759046559,-500.0,0.00014025,3]
[330759504,1719759046569,-500.0,0.00014025,3]
[330759505,1719759046579,-500.0,0.00014025,3]
[330759506,1719759046589,-500.0,0.00014025,3]
[330759507,1719759046599,-579.92,0.00014025,3]
[330759508,1719759046608,-500.0,0.00014025,3]
[330759509,1719759046618,-179.49,0.00014025,3]
[330759510,1719759046627,-500.0,0.00014025,3]
[330759511,1719759046637,-500.0,0.00014025,3]
[330759512,1719759046646,-500.0,0.00014025,3]
[330759513,1719759046656,-500.0,0.00014025,3]
[330759514,1719759046665,-1002.91,0.00014025,3]
[330759515,1719759046676,-500.0,0.00014025,3]
[330759516,1719759046685,-500.0,0.00014025,3]
[330759517,1719759046696,-500.0,0.00014025,3]
[330759518,1719759046706,-500.0,0.00014025,3]
[330759519,1719759046716,-500.0,0.00014025,3]
[330759520,1719759046725,-500.0,0.00014026,3]
[330759521,1719759046735,-593.39,0.00014026,3]
[330759522,1719759046744,-649.25,0.00014026,3]
[330759523,1719759046754,-500.0,0.00014026,3]
[330759524,1719759046764,-500.0,0.00014026,3]
[330759525,1719759046774,-500.0,0.00014026,3]
[330759526,1719759046783,-500.0,0.00014026,3]
[330759528,1719759046793,-500.0,0.00014026,3]
[330759530,1719759046803,-500.0,0.00014026,3]
[330759532,1719759046813,-500.0,0.00014026,3]
[330759534,1719759046822,-500.0,0.00014026,3]
[330759536,1719759046831,-500.0,0.00014026,3]
[330759538,1719759046840,-500.0,0.00014026,3]
[330759540,1719759046851,-500.0,0.00014026,3]
[330759542,1719759046860,-500.0,0.00014026,3]
[330759544,1719759046870,-500.0,0.00014026,3]
[330759546,1719759046879,-500.0,0.00014026,3]
[330759548,1719759046888,-500.0,0.00014026,3]
[330759550,1719759046898,-500.0,0.00014026,3]
[330759552,1719759046907,-500.0,0.00014026,3]
[330759554,1719759046917,-500.0,0.00014026,3]
[330759556,1719759046926,-2165.81,0.00014026,3]
[330759558,1719759046937,-500.0,0.00014026,3]
[330759560,1719759046947,-500.0,0.00014026,3]
[330759562,1719759046957,-12970.53,0.00014026,3]
[330759564,1719759046967,-500.0,0.00014026,3]
[330759566,1719759046977,-500.0,0.00014026,3]
[330759568,1719759046986,-500.0,0.00014026,3]
[330759570,1719759046995,-500.0,0.00014026,3]
[330759572,1719759047009,-500.0,0.00014026,3]
[330759574,1719759047019,-500.0,0.00014026,3]
[330759576,1719759047028,-1300.21,0.00014026,3]
[330759578,1719759047038,-656.32,0.00014026,3]
[330759580,1719759047048,-1073.9,0.00014026,3]
[330759582,1719759047058,-500.0,0.00014026,3]
[330759584,1719759047068,-500.0,0.00014026,3]
[330759586,1719759047078,-520.83,0.00014026,3]
[330759589,1719759047091,-500.0,0.00014026,3]
[330759590,1719759047102,-665.72,0.00014026,3]
[330759592,1719759047111,-179.6,0.00014026,3]
[330759594,1719759047121,-500.0,0.00014026,3]
[330759597,1719759047131,-316.23,0.00014026,3]
[330759599,1719759047140,-500.0,0.00014026,3]
[330759601,1719759047150,-600.44,0.00014026,3]
[330759602,1719759047159,-500.0,0.00014026,3]
[330759605,1719759047169,-500.0,0.00014026,3]
[330759607,1719759047179,-974.46,0.00014026,3]
[330759609,1719759047189,-500.0,0.00014026,3]
[330759611,1719759047203,-500.0,0.00014026,3]
[330759613,1719759047213,-500.0,0.00014026,3]
[330759614,1719759047222,-500.0,0.00014034,3]
[330759617,1719759047232,-500.0,0.00014034,3]
[330759619,1719759047241,-500.0,0.00014034,3]
[330759621,1719759047253,-513.85,0.00014034,3]
[330759623,1719759047263,-2491.27,0.00014034,3]
[330759625,1719759047272,-500.0,0.00014034,3]
[330759627,1719759047282,-500.0,0.00014034,3]
[330759629,1719759047293,-776.8,0.00014034,3]
[330759631,1719759047303,-500.0,0.00014034,3]
[330759633,1719759047314,-500.0,0.00014034,3]
[330759635,1719759047324,-500.0,0.00014034,3]
[330759637,1719759047333,-289.93,0.00014034,3]
[330759639,1719759047342,-500.0,0.00014034,3]
[330759641,1719759047353,-500.0,0.00014034,3]
[330759643,1719759047363,-500.0,0.00014034,3]
[330759645,1719759047372,-571.13,0.00014034,3]
[330759647,1719759047382,-500.0,0.00014034,3]
[330759649,1719759047391,-500.0,0.00014034,3]
[330759651,1719759047401,-610.32,0.00014034,3]
[330759653,1719759047411,-1029.4,0.00014034,3]
[330759655,1719759047421,-500.0,0.00014034,3]
[330759657,1719759047430,-500.0,0.00014034,3]
[330759659,1719759047440,-500.0,0.00014034,3]
[330759661,1719759047450,-500.0,0.00014034,3]
[330759663,1719759047460,-500.0,0.00014034,3]
[330759665,1719759047470,-525.5,0.00014034,3]
[330759667,1719759047480,-500.0,0.00014034,3]
[330759670,1719759047491,-500.0,0.00014034,3]
[330759672,1719759047500,-500.0,0.00014034,3]
[330759674,1719759047509,-500.0,0.00014034,3]
[330759676,1719759047519,-514.96,0.00014034,3]
[330759678,1719759047528,-632.89,0.00014034,3]
[330759680,1719759047538,-500.0,0.00014034,3]
[330759681,1719759047548,-500.0,0.00014034,3]
[330759682,1719759047558,-500.0,0.00014034,3]
[330759683,1719759047567,-500.0,0.00014034,3]
[330759684,1719759047576,-500.0,0.00014034,3]
[330759685,1719759047586,-500.0,0.00014034,3]
[330759686,1719759047595,-500.0,0.00014034,3]
[330759687,1719759047604,-500.0,0.00014034,3]
[330759688,1719759047613,-500.0,0.00014034,3]
[330759689,1719759047623,-438.92,0.00014035,3]
[330759691,1719759047632,-500.0,0.00014035,3]
[330759693,1719759047641,-500.0,0.00014035,3]
[330759695,1719759047650,-500.0,0.00014035,3]
[330759697,1719759047660,-500.0,0.00014035,3]
[330759699,1719759047670,-500.0,0.00014035,3]
[330759701,1719759047679,-722.29,0.00014035,3]
[330759703,1719759047689,-500.0,0.00014035,3]
[330759705,1719759047699,-521.49,0.00014035,3]
[330759707,1719759047708,-500.0,0.00014035,3]
[330759709,1719759047717,-500.0,0.00014035,3]
[330759711,1719759047727,-500.0,0.00014035,3]
[330759713,1719759047736,-500.0,0.00014035,3]
[330759715,1719759047745,-500.0,0.00014035,3]
[330759717,1719759047755,-500.0,0.00014035,3]
[330759719,1719759047765,-500.0,0.00014035,3]
[330759721,1719759047774,-387.05,0.00014035,3]
[330759723,1719759047784,-500.0,0.00014035,3]
[330759725,1719759047793,-435.93595014,0.00014035,3]
[330759751,1719759048019,-64.06404986,0.00014035,3]
[330759753,1719759048029,-500.0,0.00014035,3]
[330759755,1719759048038,-184.65995014,0.00014035,3]
[330759758,1719759048051,-288.76004986,0.00014035,3]
[330759759,1719759048060,-500.0,0.00014035,3]
[330759762,1719759048070,-290.60909934,0.00014035,3]
[330759764,1719759048082,-209.39090066,0.00014035,3]
[330759766,1719759048093,-79.12109934,0.00014035,3]
[330759768,1719759048105,-1537.41890066,0.00014035,3]
[330759770,1719759048116,-500.0,0.00014035,3]
[330759772,1719759048126,-500.0,0.00014035,3]
[330759774,1719759048136,-500.0,0.00014035,3]
[330759776,1719759048145,-395.46109934,0.00014035,3]
[330759783,1719759048203,474.38,0.00011111,2]
[330759809,1719759048437,-474.38,0.00013375,2]
[330759811,1719759048446,-166.56630159,0.000139,2]
[330759813,1719759048456,-104.53890066,0.00014035,3]
[330759814,1719759048465,-500.0,0.00014035,3]
[330759816,1719759048475,-500.0,0.00014035,3]
[330759818,1719759048485,-500.0,0.00014035,3]
[330759819,1719759048494,-189.05996745,0.00014035,3]
[330759820,1719759048503,-406.47277781,0.00014035,3]
[330759821,1719759048514,-93.52722219,0.00014035,3]
[330759822,1719759048523,-195.71507781,0.00014035,3]
[330759823,1719759048535,-304.28492219,0.00014035,3]
[330759824,1719759048545,-500.0,0.00014035,3]
[330759825,1719759048554,-315.6,0.00014035,3]
[330759826,1719759048564,-500.0,0.00014035,3]
[330759827,1719759048573,-389.35,0.00014035,3]
[330759828,1719759048583,-500.0,0.00014035,3]